[Event "6e festival d'échecs d'Allauch"]
[Site "Allauch, France"]
[Date "2024.08.28"]
[Round "4.6"]
[White "Dorvaux-Valdieu, Teiva"]
[Black "Sembel Rudelle, Gael"]
[Result "0-1"]
[TimeControl "1 h 30 min (+30s/coup)"]
[WhiteElo "1679"]
[BlackElo "1624"]

1. d4 {[%clk 01:30:58]} d5 {[%clk 01:30:52]} {[%emt 00:00:08]} 2. Nf3 {[%clk
01:31:23]} {[%emt 00:00:05]} Nf6 {[%clk 01:30:46]} {[%emt 00:00:35]} 3. e3
{[%clk 01:31:48]} {[%emt 00:00:07]} c5 {[%clk 01:30:57]} {[%emt 00:00:18]} 4.
b3 {[%clk 01:32:11]} {[%emt 00:00:08]} Nc6 {[%clk 01:30:52]} {[%emt 00:00:34]}
5. Bb2 {[%clk 01:32:25]} {[%emt 00:00:17]} cxd4 {[%clk 01:29:15]} {[%emt
00:02:06]} 6. exd4 {[%clk 01:32:23]} {[%emt 00:00:31]} Bf5 {[%clk 01:27:56]}
{[%emt 00:01:49]} 7. Bd3 {[%clk 01:28:27]} {[%emt 00:04:26]} Bxd3 {[%clk
01:24:24]} {[%emt 00:04:02]} 8. Qxd3 {[%clk 01:28:07]} {[%emt 00:00:50]} e6
{[%clk 01:24:24]} {[%emt 00:00:31]} 9. a3 {[%clk 01:27:17]} {[%emt 00:01:20]}
Be7 {[%clk 01:22:41]} {[%emt 00:02:13]} 10. Nbd2 {[%clk 01:27:18]} {[%emt
00:00:28]} O-O {[%clk 01:21:05]} {[%emt 00:02:06]} 11. O-O {[%clk 01:26:54]}
{[%emt 00:00:54]} Rc8 {[%clk 01:15:09]} {[%emt 00:06:25]} 12. Ne5 {[%clk
01:22:32]} {[%emt 00:04:54]} Nxe5 {[%clk 01:14:13]} {[%emt 00:01:26]} 13. dxe5
{[%clk 01:22:43]} {[%emt 00:00:18]} Nd7 {[%clk 01:14:34]} {[%emt 00:00:09]} 14.
f4 {[%clk 01:17:25]} {[%emt 00:05:49]} Qb6+ {[%clk 01:12:23]} {[%emt 00:02:40]}
15. Bd4 {[%clk 01:12:39]} {[%emt 00:05:16]} Qc6 {[%clk 01:07:19]} {[%emt
00:05:34]} 16. c3 {[%clk 01:07:32]} {[%emt 00:05:37]} Bc5 {[%clk 01:06:34]}
{[%emt 00:01:16]} 17. Rfc1 {[%clk 01:06:08]} {[%emt 00:01:53]} Bxd4+ {[%clk
01:00:24]} {[%emt 00:06:40]} 18. cxd4 {[%clk 01:06:09]} {[%emt 00:00:29]} Qb6
{[%clk 00:59:14]} {[%emt 00:01:40]} 19. Rc3 {[%clk 01:02:20]} {[%emt 00:04:19]}
Rc6 {[%clk 00:59:31]} {[%emt 00:00:12]} 20. Rac1 {[%clk 01:02:32]} {[%emt
00:00:18]} Rfc8 {[%clk 00:59:55]} {[%emt 00:00:06]} 21. b4 {[%clk 01:01:24]}
{[%emt 00:01:38]} a5 {[%emt 00:06:24]} 22. Rxc6 {[%clk 00:56:41]} {[%emt
00:05:11]} Rxc6 {[%clk 00:54:29]} {[%emt 00:00:05]} 23. Rxc6 {[%clk 00:56:53]}
{[%emt 00:00:18]} bxc6 {[%clk 00:54:23]} {[%emt 00:00:35]} 24. Qc3 {[%clk
00:56:54]} {[%emt 00:00:29]} axb4 {[%clk 00:54:30]} {[%emt 00:00:23]} 25. Qxb4
{[%clk 00:56:44]} {[%emt 00:00:40]} Qxb4 {[%clk 00:54:51]} {[%emt 00:00:09]} 26.
axb4 {[%clk 00:57:07]} {[%emt 00:00:06]} Nb8 {[%clk 00:55:17]} {[%emt
00:00:04]} 27. Kf2 {[%clk 00:50:10]} {[%emt 00:07:27]} Na6 {[%clk 00:53:49]}
{[%emt 00:01:58]} 28. Ke2 {[%clk 00:50:18]} {[%emt 00:00:22]} Nxb4 {[%clk
00:54:05]} {[%emt 00:00:13]} 29. Nb3 {[%clk 00:50:31]} {[%emt 00:00:17]} Kf8
{[%clk 00:54:26]} {[%emt 00:00:10]} 30. Kd2 {[%clk 00:50:46]} {[%emt 00:00:14]}
Na6 {[%clk 00:54:17]} {[%emt 00:00:39]} 31. Kc3 {[%clk 00:51:04]} {[%emt
00:00:13]} Ke7 {[%clk 00:54:41]} {[%emt 00:00:06]} 32. g4 {[%clk 00:48:14]}
{[%emt 00:03:19]} g6 {[%clk 00:54:38]} {[%emt 00:00:33]} 33. h4 {[%clk
00:48:03]} {[%emt 00:00:41]} Kd7 {[%clk 00:54:37]} {[%emt 00:00:31]} 34. Nc5+
{[%clk 00:41:25]} {[%emt 00:07:07]} Nxc5 {[%clk 00:54:54]} {[%emt 00:00:14]} 35.
dxc5 {[%clk 00:41:49]} {[%emt 00:00:07]} Kc7 {[%clk 00:55:07]} {[%emt
00:00:17]} 36. Kb4 {[%clk 00:39:41]} {[%emt 00:02:37]} Kb7 {[%clk 00:55:19]}
{[%emt 00:00:19]} 37. Kc3 {[%clk 00:37:33]} {[%emt 00:02:37]} Ka6 {[%clk
00:55:42]} {[%emt 00:00:07]} 38. Kb4 {[%clk 00:37:55]} {[%emt 00:00:09]} h6
{[%clk 00:55:41]} {[%emt 00:00:32]} 39. g5 {[%clk 00:37:53]} {[%emt 00:00:32]}
h5 {[%clk 00:56:03]} {[%emt 00:00:08]} 40. Ka4 {[%clk 00:38:03]} {[%emt
00:00:20]} d4 {[%clk 00:56:24]} {[%emt 00:00:09]} 0-1

[Event "6e festival d'échecs d'Allauch"]
[Site "Allauch, France"]
[Date "2024.08.28"]
[Round "4.7"]
[White "Arlot, Bastien"]
[Black "Madi, Chahinez"]
[Result "0-1"]
[TimeControl "1 h 30 min (+30s/coup)"]
[WhiteElo "1557"]
[BlackElo "1668"]

1. e4 {[%clk 01:30:58]} c5 {[%clk 01:30:56]} {[%emt 00:00:05]} 2. Nf3 {[%clk
01:31:19]} {[%emt 00:00:09]} d6 {[%clk 01:31:22]} {[%emt 00:00:05]} 3. Bb5+
{[%clk 01:31:38]} {[%emt 00:00:12]} Nd7 {[%clk 01:31:31]} {[%emt 00:00:18]} 4.
c3 {[%clk 01:31:51]} {[%emt 00:00:18]} a6 {[%clk 01:31:04]} {[%emt 00:00:58]} 5.
Ba4 {[%clk 01:32:14]} {[%emt 00:00:06]} b5 {[%clk 01:31:02]} {[%emt 00:00:33]}
6. Bc2 {[%clk 01:32:42]} Bb7 {[%clk 01:31:21]} {[%emt 00:00:13]} 7. d4 {[%clk
01:31:19]} {[%emt 00:01:51]} cxd4 {[%clk 01:30:05]} {[%emt 00:01:47]} 8. cxd4
{[%clk 01:30:54]} {[%emt 00:00:55]} Ngf6 {[%clk 01:29:28]} {[%emt 00:01:06]} 9.
Nbd2 {[%clk 01:26:50]} {[%emt 00:04:35]} g6 {[%clk 01:28:04]} {[%emt 00:01:55]}
10. O-O {[%clk 01:25:06]} {[%emt 00:02:13]} Bg7 {[%clk 01:27:39]} {[%emt
00:00:55]} 11. Re1 {[%clk 01:24:25]} {[%emt 00:01:11]} Nb6 {[%clk 01:21:15]}
{[%emt 00:06:54]} 12. e5 {[%clk 01:15:14]} {[%emt 00:09:40]} Nfd5 {[%clk
01:19:42]} {[%emt 00:02:03]} 13. exd6 {[%clk 01:07:55]} {[%emt 00:07:49]} Qxd6
{[%clk 01:19:21]} {[%emt 00:00:51]} 14. Ne4 {[%clk 01:06:18]} {[%emt 00:02:07]}
Qc7 {[%clk 01:17:35]} {[%emt 00:02:10]} 15. Nc5 {[%clk 00:56:59]} {[%emt
00:09:54]} O-O {[%clk 01:04:59]} {[%emt 00:13:07]} 16. Bb3 {[%clk 00:54:47]}
{[%emt 00:02:43]} e6 {[%clk 00:59:35]} {[%emt 00:05:53]} 17. Ne5 {[%clk
00:42:47]} {[%emt 00:12:30]} Rad8 {[%clk 00:49:41]} {[%emt 00:10:18]} 18. Bg5
{[%clk 00:33:19]} {[%emt 00:10:05]} Rd6 {[%clk 00:34:03]} {[%emt 00:16:00]} 19.
Rc1 {[%clk 00:31:37]} {[%emt 00:02:20]} Qb8 {[%clk 00:33:57]} {[%emt 00:00:22]}
20. Bxd5 {[%clk 00:17:22]} {[%emt 00:14:59]} Rxd5 {[%clk 00:32:57]} {[%emt
00:01:31]} 21. Bf4 {[%clk 00:15:29]} {[%emt 00:02:22]} Qa8 {[%clk 00:27:06]}
{[%emt 00:06:16]} 22. Qd2 {[%clk 00:12:44]} {[%emt 00:03:21]} Rfd8 {[%clk
00:23:05]} {[%emt 00:04:26]} 23. Nb3 {[%clk 00:11:41]} {[%emt 00:01:23]} f6
{[%clk 00:20:23]} {[%emt 00:03:26]} 24. Nf3 {[%clk 00:09:43]} {[%emt 00:02:28]}
e5 {[%clk 00:20:07]} {[%emt 00:00:46]} 25. Bh6 {[%clk 00:09:29]} {[%emt
00:00:44]} Nc4 {[%clk 00:19:29]} {[%emt 00:01:09]} 26. Rxc4 {[%clk 00:08:09]}
{[%emt 00:01:50]} bxc4 {[%clk 00:19:41]} {[%emt 00:00:18]} 27. Bxg7 {[%clk
00:07:56]} {[%emt 00:00:42]} Kxg7 {[%clk 00:19:30]} {[%emt 00:00:40]} 28. Na5
{[%clk 00:07:18]} {[%emt 00:01:09]} Qc8 {[%clk 00:13:03]} {[%emt 00:06:55]} 29.
Qb4 {[%clk 00:07:32]} {[%emt 00:00:18]} R5d7 {[%clk 00:06:13]} {[%emt
00:07:17]} 30. dxe5 {[%clk 00:05:23]} {[%emt 00:02:40]} Bxf3 {[%clk 00:02:12]}
{[%emt 00:04:33]} 31. exf6+ {[%clk 00:05:48]} {[%emt 00:00:05]} Kxf6 {[%clk
00:02:23]} {[%emt 00:00:19]} 32. gxf3 {[%clk 00:05:14]} {[%emt 00:01:03]} Re8
{[%clk 00:01:13]} {[%emt 00:01:40]} 33. Qb6+ {[%clk 00:04:05]} {[%emt
00:01:39]} Kf7 {[%clk 00:01:19]} {[%emt 00:00:25]} 34. Rc1 {[%clk 00:03:57]}
{[%emt 00:00:37]} Re6 {[%clk 00:01:08]} {[%emt 00:00:42]} 35. Qb4 {[%clk
00:03:26]} {[%emt 00:01:01]} Rd5 {[%clk 00:01:11]} {[%emt 00:00:27]} 36. Rxc4
{[%clk 00:02:43]} {[%emt 00:01:13]} Rg5+ {[%clk 00:01:12]} {[%emt 00:00:29]} 37.
Kf1 {[%clk 00:02:44]} {[%emt 00:00:29]} Qd7 {[%clk 00:01:20]} {[%emt 00:00:16]}
38. Rf4+ {[%clk 00:02:35]} {[%emt 00:00:43]} Rf6 {[%clk 00:01:11]} {[%emt
00:00:39]} 39. Qb3+ {[%clk 00:01:50]} {[%emt 00:01:16]} Kg7 {[%clk 00:01:31]}
{[%emt 00:00:10]} 40. Rb4 {[%clk 00:01:15]} {[%emt 00:01:05]} Qh3+ {[%clk
00:01:34]} {[%emt 00:00:27]} 41. Ke1 {[%clk 00:01:27]} {[%emt 00:00:18]} Re6+
{[%clk 00:01:38]} {[%emt 00:00:26]} 42. Kd2 {[%clk 00:00:33]} {[%emt 00:01:24]}
Rxa5 {[%clk 00:01:11]} {[%emt 00:00:57]} 43. Qc3+ {[%clk 00:00:54]} {[%emt
00:00:09]} Rae5 {[%clk 00:01:26]} {[%emt 00:00:15]} 44. Qc7+ {[%clk 00:00:36]}
{[%emt 00:00:48]} Re7 {[%clk 00:01:40]} {[%emt 00:00:16]} 45. Qc3 {[%clk
00:00:47]} {[%emt 00:00:19]} Qf1 {[%clk 00:01:42]} {[%emt 00:00:28]} 46. Re4
{[%clk 00:00:31]} {[%emt 00:00:45]} Qxf2+ {[%clk 00:01:57]} {[%emt 00:00:16]}
47. Re2 {[%clk 00:00:48]} {[%emt 00:00:13]} Qxe2+ {[%clk 00:02:21]} {[%emt
00:00:05]} 0-1

[Event "6e festival d'échecs d'Allauch"]
[Site "Allauch, France"]
[Date "2024.08.28"]
[Round "4.8"]
[White "Belaid, Noa"]
[Black "Greco-Roux, Hector"]
[Result "1/2-1/2"]
[TimeControl "1 h 30 min (+30s/coup)"]
[WhiteElo "1637"]
[BlackElo "1436"]

1. e4 {[%clk 01:30:25]} {[%emt 00:00:35]} d5 {[%clk 01:29:48]} {[%emt
00:01:12]} 2. exd5 {[%clk 01:30:49]} {[%emt 00:00:06]} Qxd5 {[%clk 01:30:03]}
{[%emt 00:00:17]} 3. Nc3 {[%clk 01:30:49]} {[%emt 00:00:28]} Qa5 {[%clk
01:29:59]} {[%emt 00:00:33]} 4. Nf3 {[%clk 01:30:42]} {[%emt 00:00:38]} Nf6
{[%clk 01:29:54]} {[%emt 00:00:35]} 5. Bc4 {[%clk 01:30:43]} {[%emt 00:00:27]}
e6 {[%clk 01:30:15]} {[%emt 00:00:11]} 6. O-O {[%clk 01:30:40]} {[%emt
00:00:33]} Bd6 {[%clk 01:30:36]} {[%emt 00:00:09]} 7. h3 {[%clk 01:30:11]}
{[%emt 00:00:59]} c6 {[%clk 01:30:14]} {[%emt 00:00:52]} 8. d3 {[%clk
01:29:47]} {[%emt 00:00:53]} Nbd7 {[%clk 01:30:30]} {[%emt 00:00:15]} 9. Re1
{[%clk 01:27:52]} {[%emt 00:02:25]} Qc7 {[%clk 01:29:47]} {[%emt 00:01:12]} 10.
Bb3 {[%clk 01:22:54]} {[%emt 00:05:27]} a5 {[%clk 01:24:59]} {[%emt 00:05:20]}
11. a4 {[%clk 01:20:07]} {[%emt 00:03:17]} Bb4 {[%clk 01:20:19]} {[%emt
00:05:09]} 12. Bd2 {[%clk 01:16:42]} {[%emt 00:03:55]} Nc5 {[%clk 01:18:53]}
{[%emt 00:01:57]} 13. Bc4 {[%clk 01:09:17]} {[%emt 00:07:47]} b6 {[%clk
01:13:57]} {[%emt 00:05:33]} 14. d4 {[%clk 01:02:24]} {[%emt 00:07:23]} Ba6
{[%clk 01:12:31]} {[%emt 00:01:57]} 15. Bxa6 {[%clk 00:58:15]} {[%emt
00:04:38]} Nxa6 {[%clk 01:11:35]} {[%emt 00:01:26]} 16. Na2 {[%clk 00:51:38]}
{[%emt 00:07:33]} Bd6 {[%clk 01:11:14]} {[%emt 00:01:24]} 17. c4 {[%clk
00:48:04]} {[%emt 00:03:58]} Nb8 {[%clk 01:04:32]} {[%emt 00:07:19]} 18. Bc3
{[%clk 00:47:09]} {[%emt 00:01:23]} Nbd7 {[%emt 00:02:10]} 19. Rc1 {[%clk
00:43:09]} {[%emt 00:04:25]} Qb7 {[%clk 01:02:02]} {[%emt 00:01:27]} 20. Ne5
{[%clk 00:38:46]} {[%emt 00:04:50]} Bxe5 {[%clk 00:57:18]} {[%emt 00:05:18]} 21.
dxe5 {[%clk 00:39:03]} {[%emt 00:00:11]} Ng8 {[%clk 00:57:36]} {[%emt
00:00:14]} 22. Qg4 {[%clk 00:36:48]} {[%emt 00:02:39]} g6 {[%clk 00:56:01]}
{[%emt 00:02:11]} 23. Rcd1 {[%clk 00:33:49]} {[%emt 00:03:26]} Nc5 {[%clk
00:53:31]} {[%emt 00:03:03]} 24. Rd6 {[%clk 00:26:49]} {[%emt 00:07:26]}
1/2-1/2

[Event "6e festival d'échecs d'Allauch"]
[Site "Allauch, France"]
[Date "2024.08.28"]
[Round "5.1"]
[White "Degraeve, Remy"]
[Black "Degraeve, Jean-Marc"]
[Result "1/2-1/2"]
[TimeControl "1 h 30 min (+30s/coup)"]
[WhiteElo "2402"]
[BlackElo "2487"]

1. e4 {[%clk 01:29:56]} {[%emt 00:01:04]} e6 {[%clk 01:29:47]} {[%emt
00:01:14]} 2. d4 {[%clk 01:30:20]} {[%emt 00:00:06]} d5 {[%clk 01:30:07]}
{[%emt 00:00:10]} 3. e5 {[%clk 01:29:47]} {[%emt 00:01:02]} c5 {[%clk
01:29:55]} {[%emt 00:00:42]} 4. c3 {[%clk 01:30:14]} {[%emt 00:00:04]} Nc6
{[%clk 01:30:16]} {[%emt 00:00:09]} 5. Nf3 {[%clk 01:30:38]} {[%emt 00:00:05]}
Bd7 {[%clk 01:29:34]} {[%emt 00:01:12]} 6. Be2 {[%clk 01:31:02]} {[%emt
00:00:05]} cxd4 {[%clk 01:27:13]} {[%emt 00:02:52]} 7. cxd4 {[%clk 01:31:27]}
{[%emt 00:00:05]} Nge7 {[%clk 01:27:35]} {[%emt 00:00:07]} 8. Na3 {[%clk
01:30:38]} {[%emt 00:01:20]} Nf5 {[%clk 01:27:52]} {[%emt 00:00:13]} 9. Nc2
{[%clk 01:31:05]} {[%emt 00:00:04]} Be7 {[%clk 01:28:08]} {[%emt 00:00:13]} 10.
O-O {[%clk 01:31:29]} {[%emt 00:00:06]} O-O {[%clk 01:28:30]} {[%emt 00:00:09]}
11. Bd3 {[%clk 01:31:57]} {[%emt 00:00:03]} f6 {[%clk 01:28:42]} {[%emt
00:00:18]} 12. Bxf5 {[%clk 01:31:53]} {[%emt 00:00:34]} exf5 {[%clk 01:29:02]}
{[%emt 00:00:10]} 13. Re1 {[%clk 01:32:19]} {[%emt 00:00:03]} fxe5 {[%clk
01:20:45]} {[%emt 00:08:47]} 14. Nxe5 {[%clk 01:31:57]} {[%emt 00:00:52]} Nxe5
{[%clk 01:21:07]} {[%emt 00:00:09]} 15. dxe5 {[%clk 01:30:49]} {[%emt
00:01:37]} Be6 {[%clk 01:21:13]} {[%emt 00:00:24]} 16. Nd4 {[%clk 01:29:33]}
{[%emt 00:01:47]} Qd7 {[%clk 01:21:34]} {[%emt 00:00:09]} 17. f4 {[%clk
01:21:06]} {[%emt 00:08:57]} Bc5 {[%clk 01:21:31]} {[%emt 00:00:32]} 18. Be3
{[%clk 01:21:30]} {[%emt 00:00:06]} Bxd4 {[%clk 01:21:55]} {[%emt 00:00:07]} 19.
Bxd4 {[%clk 01:20:26]} {[%emt 00:01:33]} Rfc8 {[%clk 01:22:13]} {[%emt
00:00:11]} 20. a4 {[%clk 01:06:12]} {[%emt 00:14:45]} Rc4 {[%clk 01:22:00]}
{[%emt 00:00:42]} 21. b3 {[%clk 01:05:24]} {[%emt 00:01:18]} Rc6 {[%clk
01:22:24]} {[%emt 00:00:06]} 22. a5 {[%clk 01:03:59]} {[%emt 00:01:55]} a6
{[%clk 01:22:30]} {[%emt 00:00:24]} 23. b4 {[%clk 01:02:51]} {[%emt 00:01:38]}
Rc4 {[%clk 01:22:36]} {[%emt 00:00:24]} 24. Qd2 {[%clk 01:03:17]} {[%emt
00:00:04]} Rac8 {[%clk 01:08:19]} {[%emt 00:14:47]} 25. Bc5 {[%clk 01:02:42]}
{[%emt 00:01:05]} d4 {[%clk 01:08:10]} {[%emt 00:00:39]} 26. Rac1 {[%clk
00:57:40]} {[%emt 00:05:32]} Rxc1 {[%clk 01:06:01]} {[%emt 00:02:40]} 27. Rxc1
{[%clk 00:58:07]} {[%emt 00:00:03]} Rd8 {[%clk 01:05:53]} {[%emt 00:00:38]} 28.
h3 {[%clk 00:52:51]} {[%emt 00:05:45]} Qd5 {[%clk 01:03:34]} {[%emt 00:02:49]}
29. Kh2 {[%clk 00:48:18]} {[%emt 00:05:02]} d3 {[%clk 01:01:21]} {[%emt
00:02:44]} 30. Rc3 {[%clk 00:42:01]} {[%emt 00:06:48]} Qa2 {[%clk 00:58:27]}
{[%emt 00:03:23]} 31. Qxa2 {[%clk 00:41:37]} {[%emt 00:00:55]} Bxa2 {[%clk
00:58:56]} {[%emt 00:00:01]} 32. Bd6 {[%clk 00:41:59]} {[%emt 00:00:07]} Bb1
{[%clk 00:59:18]} {[%emt 00:00:07]} 33. Rc4 {[%clk 00:42:23]} {[%emt 00:00:07]}
Kf7 {[%clk 00:54:57]} {[%emt 00:04:51]} 34. Kg3 {[%clk 00:42:17]} {[%emt
00:00:36]} Bc2 {[%clk 00:50:47]} {[%emt 00:04:40]} 35. Rd4 {[%clk 00:42:42]}
{[%emt 00:00:05]} Ke6 {[%clk 00:23:27]} {[%emt 00:27:50]} 36. Kf2 {[%clk
00:42:23]} {[%emt 00:00:48]} h6 {[%clk 00:20:15]} {[%emt 00:03:43]} 37. Ke3
{[%clk 00:36:06]} {[%emt 00:06:48]} g5 {[%clk 00:19:39]} {[%emt 00:01:05]} 38.
g3 {[%clk 00:36:26]} {[%emt 00:00:10]} gxf4+ {[%clk 00:19:19]} {[%emt
00:00:50]} 39. gxf4 {[%clk 00:36:52]} {[%emt 00:00:04]} Rd7 {[%clk 00:18:18]}
{[%emt 00:01:31]} 40. Kd2 {[%clk 00:35:44]} {[%emt 00:01:38]} h5 {[%clk
00:17:33]} {[%emt 00:01:14]} 41. h4 {[%clk 00:34:10]} {[%emt 00:02:04]} Rg7
{[%clk 00:17:08]} {[%emt 00:00:53]} 42. Kc3 {[%clk 00:34:11]} {[%emt 00:00:31]}
Bb1 {[%clk 00:15:57]} {[%emt 00:01:41]} 43. b5 {[%clk 00:29:51]} {[%emt
00:04:50]} axb5 {[%clk 00:16:02]} {[%emt 00:00:25]} 44. Rb4 {[%clk 00:30:16]}
{[%emt 00:00:05]} Bc2 {[%clk 00:04:36]} {[%emt 00:11:57]} 45. Rxb5 {[%clk
00:29:38]} {[%emt 00:01:08]} Ba4 {[%clk 00:04:39]} {[%emt 00:00:27]} 46. Rb6
{[%clk 00:29:32]} {[%emt 00:00:36]} Kd5 {[%clk 00:04:42]} {[%emt 00:00:25]} 47.
Rb4 {[%clk 00:24:30]} {[%emt 00:05:33]} Bc6 {[%clk 00:03:01]} {[%emt 00:02:11]}
48. Rc4 {[%clk 00:18:36]} {[%emt 00:06:24]} Rg1 {[%clk 00:02:15]} {[%emt
00:01:15]} 49. Rd4+ {[%clk 00:16:02]} {[%emt 00:03:05]} Ke6 {[%clk 00:02:43]}
{[%emt 00:00:02]} 50. Rxd3 {[%clk 00:15:10]} {[%emt 00:01:22]} Rf1 {[%clk
00:02:10]} {[%emt 00:01:03]} 51. Rd4 {[%clk 00:15:23]} {[%emt 00:00:17]} Re1
{[%clk 00:01:21]} {[%emt 00:01:18]} 52. Rd3 {[%clk 00:09:18]} {[%emt 00:06:34]}
Rf1 {[%clk 00:01:41]} {[%emt 00:00:09]} 53. Rd4 {[%clk 00:09:31]} {[%emt
00:00:19]} Re1 {[%clk 00:02:06]} {[%emt 00:00:04]} 54. Bb8 {[%clk 00:08:35]}
{[%emt 00:01:25]} Bd5 {[%clk 00:02:31]} {[%emt 00:00:05]} 55. Rb4 {[%clk
00:09:02]} {[%emt 00:00:04]} Bc6 {[%clk 00:02:41]} {[%emt 00:00:21]} 56. Rb2
{[%clk 00:06:43]} {[%emt 00:02:48]} Re3+ {[%clk 00:02:58]} {[%emt 00:00:13]} 57.
Kb4 {[%clk 00:05:52]} {[%emt 00:01:21]} Bd5 {[%clk 00:02:30]} {[%emt 00:00:58]}
58. Kc5 {[%clk 00:04:09]} {[%emt 00:02:13]} Rc3+ {[%clk 00:02:57]} {[%emt
00:00:03]} 59. Kd4 {[%clk 00:04:10]} {[%emt 00:00:29]} Rc4+ {[%clk 00:03:08]}
{[%emt 00:00:19]} 60. Kd3 {[%clk 00:04:28]} {[%emt 00:00:12]} Ra4 {[%clk
00:02:20]} {[%emt 00:01:18]} 61. Bc7 {[%clk 00:03:14]} {[%emt 00:01:45]} Ra3+
{[%clk 00:02:26]} {[%emt 00:00:23]} 62. Kd2 {[%clk 00:01:54]} {[%emt 00:01:49]}
Ra2 {[%clk 00:02:52]} {[%emt 00:00:05]} 63. Rxa2 {[%clk 00:02:20]} {[%emt
00:00:04]} Bxa2 {[%clk 00:03:17]} {[%emt 00:00:05]} 64. Kc3 {[%clk 00:02:43]}
{[%emt 00:00:06]} Kd7 {[%clk 00:03:21]} {[%emt 00:00:26]} 65. Bd6 {[%clk
00:03:07]} {[%emt 00:00:06]} Be6 {[%clk 00:03:40]} {[%emt 00:00:10]} 66. Kd4
{[%clk 00:03:31]} {[%emt 00:00:05]} Kc6 {[%clk 00:04:04]} {[%emt 00:00:07]} 67.
Bc5 {[%clk 00:03:48]} {[%emt 00:00:12]} 1/2-1/2